bitfinex-derivatives/quotes_ETHF0:USTF0_20250504
["timestamp","ask_amount","ask_price","bid_price","bid_amount"]
[1746342183759,3.75911121,1845.4,1845.3,7.23575137]
[1746342184057,7.44711121,1845.4,1845.3,7.23575137]
[1746342184266,7.44711121,1845.4,1845.3,8.31942137]
[1746342184562,7.44711121,1845.4,1845.3,7.23575137]
[1746342186563,7.44658385,1845.4,1845.3,7.23575137]
[1746342187263,7.44658385,1845.4,1845.3,8.31942137]
[1746342187455,6.36297385,1845.4,1845.3,9.87862137]
[1746342187656,6.0649,1845.4,1845.3,11.58362137]
[1746342187852,7.44646264,1845.4,1845.3,10.49995137]
[1746342188363,7.44646264,1845.4,1845.3,9.64205137]
[1746342188861,6.36285264,1845.4,1845.3,10.72572137]
[1746342189163,6.0649,1845.4,1845.3,10.72572137]
[1746342189663,6.0649,1845.4,1845.3,3.48997]
[1746342189864,7.14851,1845.4,1845.3,3.48997]
[1746342190064,7.44635013,1845.4,1845.3,2.4063]
[1746342190461,7.44635013,1845.4,1845.3,3.48997]
[1746342190764,7.14851,1845.4,1845.3,3.48997]
[1746342192165,6.0649,1845.4,1845.3,3.48997]
[1746342192366,7.14851,1845.4,1845.3,3.48997]
[1746342193368,6.0649,1845.4,1845.3,3.48997]
[1746342193965,7.14851,1845.4,1845.3,3.48997]
[1746342198171,7.14851,1845.4,1845.3,2.4063]
[1746342198673,7.14851,1845.4,1845.3,3.48997]
[1746342200176,7.14851,1845.4,1845.3,2.4063]
[1746342200474,1.08367,1845.3,1845.2,1.87459]
[1746342200670,2.77237,1845.3,1845.2,1.87459]
[1746342200866,2.77237,1845.3,1845.2,3.56019]
[1746342201175,6.46037,1845.3,1845.2,3.56019]
[1746342201768,6.46037,1845.3,1845.2,2.4765]
[1746342201974,7.28147,1845.3,1845.2,2.4765]
[1746342202177,1.08373,1845.2,1845.1,5.15154]
[1746342202371,5.98023,1845.2,1845.1,1.6856]
[1746342202673,5.19462149,1845.2,1845.1,1.08378]
[1746342203170,8.88262149,1845.2,1845.1,1.08378]
[1746342204275,8.5845,1845.2,1845.1,1.08378]
[1746342204578,9.66823,1845.2,1845.1,2.81418]
[1746342205076,8.5845,1845.2,1845.1,2.81418]
[1746342205880,6.8958,1845.2,1845.1,2.81418]
[1746342206977,8.4837,1845.2,1845.1,2.81418]
[1746342207467,8.78202464,1845.2,1845.1,2.81418]
[1746342207977,8.4837,1845.2,1845.1,2.81418]
[1746342208480,8.78212504,1845.2,1845.1,2.81418]
[1746342208777,5.57432504,1845.2,1845.1,2.81418]
[1746342208977,5.57432456,1845.2,1845.1,2.81418]
[1746342209872,3.688,1845.2,1845.1,2.81418]
[1746342210979,3.98656286,1845.2,1845.1,2.81418]
[1746342212077,5.07029286,1845.2,1845.1,2.81418]
[1746342212375,7.50747074,1845.2,1845.0,1.0838]
[1746342212576,3.82602074,1845.1,1845.0,1.0838]
[1746342213176,7.51402074,1845.1,1845.0,1.0838]
[1746342213379,6.43024074,1845.1,1845.0,1.0838]
[1746342213782,7.51402074,1845.1,1845.0,1.0838]
[1746342214179,7.5140852,1845.1,1845.0,1.0838]
[1746342214984,6.4303052,1845.1,1845.0,1.0838]
[1746342215875,6.4302338,1845.1,1845.0,1.0838]
[1746342216069,6.4302338,1845.1,1845.0,2.696]
[1746342217781,6.43019507,1845.1,1845.0,2.696]
[1746342218582,7.51397507,1845.1,1845.0,2.696]
[1746342218981,1.08384,1845.0,1844.9,1.08388]
[1746342219286,2.97363507,1845.0,1844.9,1.08388]
[1746342219482,1.88979507,1845.0,1844.9,1.08388]
[1746342220184,5.57779507,1845.0,1844.9,1.08388]
[1746342221082,5.2789,1845.0,1844.9,1.08388]
[1746342221283,5.57773996,1845.0,1844.9,1.08388]
[1746342221585,3.98683996,1845.0,1844.9,1.08388]
[1746342222887,3.98679121,1845.0,1844.9,1.08388]
[1746342224578,3.688,1845.0,1844.9,1.08388]
[1746342224784,3.98679288,1845.0,1844.9,1.08388]
[1746342225085,5.07063288,1845.0,1844.9,1.08388]
[1746342225285,6.77483288,1845.0,1844.8,2.65492]
[1746342225490,1.38269288,1844.9,1844.8,2.65492]
[1746342225784,3.08692238,1844.9,1844.8,2.65492]
[1746342225979,3.87916238,1844.9,1844.7,4.3199]
[1746342226184,7.26834,1844.9,1844.7,5.40387]
[1746342226380,2.79921565,1844.8,1844.7,6.96517]
[1746342226586,0.7962,1844.8,1844.7,6.96517]
[1746342227089,4.4842,1844.8,1844.7,6.96517]
[1746342228280,3.688,1844.8,1844.7,6.96517]
[1746342229587,3.688,1844.8,1844.7,6.10827]
[1746342233495,3.688,1844.8,1844.7,2.64527]
[1746342235194,3.2078,1845.1,1844.7,2.64527]
[1746342235195,3.2078,1845.1,1845.0,1.08384]
[1746342235395,3.50658779,1845.1,1845.0,1.08384]
[1746342235895,5.16098779,1845.1,1845.0,1.08384]
[1746342236097,8.84898779,1845.1,1845.0,2.68404]
[1746342236895,9.93277843,1845.1,1845.0,2.68404]
[1746342237098,8.84899843,1845.1,1845.0,2.68404]
[1746342237285,9.93277843,1845.1,1845.0,2.68404]
[1746342237489,8.84899843,1845.1,1845.0,2.68404]
[1746342238696,8.84904386,1845.1,1845.0,2.68404]
[1746342238896,9.93282386,1845.1,1845.0,2.68404]
[1746342239099,8.84904386,1845.1,1845.0,2.68404]
[1746342240399,9.93282386,1845.1,1845.0,2.68404]
[1746342240594,9.9328911,1845.1,1845.0,2.68404]
[1746342240792,9.9328911,1845.1,1845.0,1.6002]
[1746342240993,1.08384,1845.0,1844.9,1.91927]
[1746342241198,6.6948511,1845.0,1844.9,1.91927]
[1746342241592,6.69493156,1845.0,1844.9,1.91927]
[1746342242194,6.69493156,1845.0,1844.9,3.55567]
[1746342243404,6.6949946,1845.0,1844.9,3.55567]
[1746342243799,6.6949946,1845.0,1844.9,2.72027]
[1746342243997,1.0839,1844.9,1844.8,1.08393]
[1746342244195,1.08396,1844.8,1844.7,13.51283137]
[1746342244395,1.3830146,1844.8,1844.7,12.42885137]
[1746342244591,3.0251146,1844.8,1844.7,13.51287137]
[1746342245101,1.9411546,1844.8,1844.7,6.27712]
[1746342245299,5.6291546,1844.8,1844.7,6.27712]
[1746342245495,5.6291546,1844.8,1844.7,2.81512]
[1746342246501,6.7131146,1844.8,1844.7,2.81512]
[1746342246703,5.6291546,1844.8,1844.7,2.81512]
[1746342246904,6.7131146,1844.8,1844.7,2.81512]
[1746342247103,6.71306823,1844.8,1844.7,2.81512]
[1746342248698,6.71305124,1844.8,1844.7,2.81512]
[1746342249206,6.71305124,1844.8,1844.6,13.18308137]
[1746342249393,1.97759124,1844.7,1844.6,7.50743]
[1746342250010,1.97759124,1844.7,1844.6,1.08403]
[1746342250203,5.66559124,1844.7,1844.6,1.08403]
[1746342251300,5.66551958,1844.7,1844.6,1.08403]
[1746342251507,3.688,1844.7,1844.6,1.08403]
[1746342251703,3.688,1844.7,1844.6,1.88163]
[1746342251904,3.688,1844.7,1844.6,3.44173]
[1746342253502,3.688,1844.7,1844.6,8.44173]
[1746342253698,3.688,1844.7,1844.6,3.44173]
[1746342253892,3.688,1844.7,1844.6,8.44173]
[1746342254104,6.10713135,1845.1,1845.0,1.08384]
[1746342254305,6.40600496,1845.1,1845.0,1.08384]
[1746342255103,10.09400496,1845.1,1845.0,2.79634]
[1746342255703,9.79513135,1845.1,1845.0,2.79634]
[1746342255907,10.0939962,1845.1,1845.0,2.79634]
[1746342256411,6.48176485,1845.1,1845.0,2.79634]
[1746342256598,7.56554485,1845.1,1845.0,2.79634]
[1746342257509,7.56552019,1845.1,1845.0,2.79634]
[1746342257906,6.48174019,1845.1,1845.0,2.79634]
[1746342258214,7.56552019,1845.1,1845.0,2.79634]
[1746342259315,7.56549679,1845.1,1845.0,2.79634]
[1746342261014,7.56549349,1845.1,1845.0,2.79634]
[1746342262915,6.48170411,1845.1,1845.0,2.79634]
[1746342263115,7.56548411,1845.1,1845.0,2.79634]
[1746342265016,6.48170411,1845.1,1845.0,2.79634]
[1746342265325,7.56548411,1845.1,1845.0,2.79634]
[1746342266405,7.56548078,1845.1,1845.0,2.79634]
[1746342268212,7.56548685,1845.1,1845.0,2.79634]
[1746342269817,7.26668,1845.1,1845.0,2.79634]
[1746342270006,7.56549892,1845.1,1845.0,2.79634]
[1746342270813,7.56549892,1845.1,1845.0,1.7125]
[1746342271011,6.48171892,1845.1,1844.7,11.23865137]
[1746342271212,2.96268892,1845.0,1844.9,1.08389]
[1746342271617,2.96271395,1845.0,1844.9,1.08389]
[1746342272118,6.65071395,1845.0,1844.9,1.08389]
[1746342273618,6.65071576,1845.0,1844.9,1.08389]
[1746342275120,6.35187,1845.0,1844.9,1.08389]
[1746342275321,6.65071401,1845.0,1844.9,1.08389]
[1746342275721,5.56684401,1845.0,1844.9,1.08389]
[1746342276122,6.65068401,1845.0,1844.9,1.08389]
[1746342276331,5.56684401,1845.0,1844.9,1.08389]
[1746342278622,5.268,1845.0,1844.9,1.08389]
[1746342278927,5.56694015,1845.0,1844.9,1.08389]
[1746342280529,5.56705801,1845.0,1844.9,1.08389]
[1746342280930,6.65089801,1845.0,1844.9,1.08389]
[1746342281829,5.56705801,1845.0,1844.9,1.08389]
[1746342282231,5.56711889,1845.0,1844.9,1.08389]
[1746342285938,3.98715887,1845.0,1844.9,1.08389]
[1746342286237,3.98715887,1845.0,1844.9,2.76629]
[1746342287525,3.98715743,1845.0,1844.9,2.76629]
[1746342289236,3.9871736,1845.0,1844.9,2.76629]
[1746342291137,3.9871783,1845.0,1844.9,2.76629]
[1746342292738,3.98719058,1845.0,1844.9,2.76629]
[1746342294538,5.07104516,1845.0,1844.9,2.76629]
[1746342294838,5.55870516,1845.0,1844.9,2.76629]
[1746342295030,3.98720516,1845.0,1844.9,2.76629]
[1746342296338,3.98722021,1845.0,1844.9,2.76629]
[1746342296545,5.62882021,1845.0,1844.9,2.76629]
[1746342296736,6.71266021,1845.0,1844.9,2.76629]
[1746342296936,5.62882911,1845.0,1844.9,2.76629]
[1746342297135,5.62882653,1845.0,1844.9,2.76629]
[1746342299637,6.71266653,1845.0,1844.9,2.76629]
[1746342299938,5.62882653,1845.0,1844.9,1.91839]
[1746342300341,6.71266653,1845.0,1844.9,1.5759]
[1746342300533,6.71266653,1845.0,1844.7,8.08165137]
[1746342300734,2.83832653,1844.9,1844.8,2.65986]
[1746342301136,7.61022653,1844.9,1844.8,1.08396]
[1746342301330,7.61025046,1844.9,1844.7,8.31972137]
[1746342301534,1.92355046,1844.8,1844.7,8.31972137]
[1746342301734,2.78235046,1844.8,1844.7,8.31972137]
[1746342301935,2.78235046,1844.8,1844.7,10.05112137]
[1746342302234,6.47035046,1844.8,1844.7,10.05112137]
[1746342302846,6.47032549,1844.8,1844.7,10.05112137]
[1746342304440,6.1711,1844.8,1844.7,10.05112137]
[1746342304646,6.47029697,1844.8,1844.7,10.05112137]
[1746342304836,6.47029697,1844.8,1844.7,2.81537]
[1746342305740,7.55425697,1844.8,1844.7,1.7314]
[1746342305940,6.47029697,1844.8,1844.6,14.98460137]
[1746342306243,2.76799681,1844.7,1844.6,14.98460137]
[1746342306845,2.76792635,1844.7,1844.6,14.98460137]
[1746342307149,6.45592635,1844.7,1844.6,14.98460137]
[1746342307841,6.45592635,1844.7,1844.6,13.24980137]
[1746342308047,4.5328,1844.7,1844.6,13.24980137]
[1746342308435,4.5328,1844.7,1844.6,10.04200137]
[1746342309347,4.83187549,1844.7,1844.6,10.04200137]
[1746342309647,4.83187216,1844.7,1844.6,2.80625]
[1746342309842,4.83187319,1844.7,1844.6,2.80625]
[1746342311547,4.83186444,1844.7,1844.6,2.80625]
[1746342312048,5.91588444,1844.7,1844.6,2.80625]
[1746342312241,4.83186444,1844.7,1844.6,2.80625]
[1746342312440,6.44906444,1844.7,1844.6,2.80625]
[1746342313248,6.15,1844.7,1844.6,2.80625]
[1746342313448,6.44905221,1844.7,1844.6,2.80625]
[1746342314149,6.15,1844.7,1844.6,2.80625]
[1746342314751,6.44904471,1844.7,1844.6,2.80625]
[1746342316853,6.44904002,1844.7,1844.6,2.80625]
[1746342318056,6.44904002,1844.7,1844.5,12.07595137]
[1746342318057,7.53306002,1844.7,1844.5,11.52766137]
[1746342318254,1.6812,1844.6,1844.5,11.52769137]
[1746342318752,1.98025258,1844.6,1844.5,11.52769137]
[1746342319154,5.66825258,1844.6,1844.5,11.52769137]
[1746342320853,5.66825258,1844.6,1844.5,4.29194]
[1746342321255,5.66825258,1844.6,1844.5,5.92044]
[1746342322254,5.66821995,1844.6,1844.5,5.92044]
[1746342323855,5.66821649,1844.6,1844.5,5.92044]
[1746342324755,6.75229649,1844.6,1844.5,2.71264]
[1746342324960,5.66821649,1844.6,1844.5,2.71264]
[1746342325657,5.66822353,1844.6,1844.5,2.71264]
[1746342326456,6.75230353,1844.6,1844.5,2.71264]
[1746342327556,5.66822353,1844.6,1844.5,2.71264]
[1746342327752,6.75230353,1844.6,1844.5,2.71264]
[1746342327952,6.75230353,1844.6,1844.5,1.08414]
[1746342328859,5.66822353,1844.6,1844.5,1.08414]
[1746342329061,5.66822353,1844.6,1844.5,2.75404]
[1746342329261,5.66825164,1844.6,1844.5,2.75404]
[1746342330851,6.75233164,1844.6,1844.5,2.75404]
[1746342332662,6.75233532,1844.6,1844.5,2.75404]
[1746342334265,6.75234379,1844.6,1844.5,2.75404]
[1746342334467,6.75233734,1844.6,1844.5,2.75404]
[1746342336166,6.75234177,1844.6,1844.5,2.75404]
[1746342338068,6.75232442,1844.6,1844.5,1.6699]
[1746342338267,6.75232442,1844.6,1844.5,2.75404]
[1746342338766,5.66824442,1844.6,1844.3,8.86485137]
[1746342338970,1.0842,1844.4,1844.3,7.23575137]
[1746342339269,5.07124442,1844.4,1844.3,7.23575137]
[1746342339465,6.79244442,1844.4,1844.3,7.23575137]
[1746342339869,6.79244442,1844.4,1844.3,8.32000137]
[1746342340571,5.7035607,1844.4,1844.3,8.32000137]
[1746342340866,5.7035607,1844.4,1844.3,10.04370137]
[1746342341167,6.7877607,1844.4,1844.3,10.04370137]
[1746342341364,6.4934,1844.4,1844.3,10.04370137]
[1746342342670,5.4092,1844.4,1844.3,10.04370137]
[1746342342873,6.4934,1844.4,1844.3,2.80795]
[1746342344077,6.4934,1844.4,1844.3,1.7237]
[1746342344573,6.4934,1844.4,1844.3,2.80795]
[1746342345672,6.4934,1844.4,1844.3,1.7237]
[1746342346085,6.4934,1844.4,1844.3,2.80795]
[1746342347375,5.4092,1844.4,1844.3,2.80795]
[1746342348876,6.4934,1844.4,1844.3,2.80795]
[1746342350871,5.4092,1844.4,1844.3,2.80795]
[1746342351681,6.4934,1844.4,1844.3,2.80795]
[1746342352077,5.4092,1844.4,1844.3,2.80795]
[1746342352580,5.70794226,1844.4,1844.3,2.80795]
[1746342352783,6.79214226,1844.4,1844.3,2.80795]
[1746342352980,5.70794226,1844.4,1844.2,1.08427]
[1746342353180,2.82524226,1844.3,1844.2,2.76337]
[1746342353384,3.90949226,1844.3,1844.2,2.76337]
[1746342353780,3.90951355,1844.3,1844.2,2.76337]
[1746342354176,7.59751355,1844.3,1844.2,2.76337]
[1746342355583,7.59748761,1844.3,1844.2,2.76337]
[1746342357284,7.59750052,1844.3,1844.2,2.76337]
[1746342359085,6.51325052,1844.3,1844.2,2.76337]
[1746342360486,3.98675052,1844.3,1844.2,2.76337]
[1746342360688,5.07100943,1844.3,1844.2,2.76337]
[1746342362188,5.91690943,1844.3,1844.2,2.76337]
[1746342363684,5.91697358,1844.3,1844.2,2.76337]
[1746342363889,7.56987358,1844.3,1844.2,2.76337]
[1746342365593,7.56994169,1844.3,1844.2,2.76337]
[1746342366990,7.27105,1844.3,1844.2,2.76337]
[1746342367393,7.57006475,1844.3,1844.2,2.76337]
[1746342367594,7.27105,1844.3,1844.2,2.76337]
[1746342367789,6.48581472,1844.3,1844.2,2.76337]
[1746342367982,7.27105,1844.3,1844.2,2.76337]
[1746342368188,7.57006438,1844.3,1844.2,2.76337]
[1746342368389,6.1868,1844.3,1844.2,2.76337]
[1746342368588,6.48588375,1844.3,1844.2,2.76337]
[1746342369499,6.48588375,1844.3,1843.9,7.23575137]
[1746342369693,7.09763375,1844.2,1844.0,1.08438]
[1746342369894,1.94138375,1844.1,1844.0,1.08438]
[1746342370089,2.78198375,1844.1,1844.0,1.08438]
[1746342370294,6.46998375,1844.1,1844.0,1.08438]
[1746342370596,6.47004191,1844.1,1844.0,1.08438]
[1746342370796,7.55441191,1844.1,1844.0,2.80738]
[1746342371300,7.55441191,1844.1,1844.0,1.723]
[1746342371596,7.55441191,1844.1,1844.0,1.08443]
[1746342372194,6.46987354,1844.1,1843.9,10.78472137]
[1746342372497,1.92647354,1844.0,1843.9,9.98382137]
[1746342373899,1.92636828,1844.0,1843.9,9.98382137]
[1746342374198,5.61436828,1844.0,1843.9,9.98382137]
[1746342374402,5.61436828,1844.0,1843.9,2.74807]
[1746342375700,5.61430459,1844.0,1843.9,2.74807]
[1746342377196,5.61430459,1844.0,1843.9,1.08447]
[1746342377402,5.61428571,1844.0,1843.9,1.08447]
[1746342377704,6.69877571,1844.0,1843.8,3.50971]
[1746342377897,0.29878571,1843.9,1843.8,3.50971]
[1746342378098,3.688,1843.9,1843.8,3.50971]
[1746342379205,1.08455,1843.8,1843.7,12.62643137]
[1746342379406,4.33795,1843.8,1843.7,12.62643137]
[1746342379700,3.2534,1843.8,1843.7,12.62643137]
[1746342379903,3.2534,1843.8,1843.7,14.20473137]
[1746342380203,8.02595,1843.8,1843.7,14.20473137]
[1746342380501,7.24010373,1843.8,1843.7,14.20473137]
[1746342380896,7.24010373,1843.8,1843.7,15.01573137]
[1746342381502,6.9414,1843.8,1843.7,11.56273137]
[1746342381699,7.24000519,1843.8,1843.7,11.56273137]
[1746342382006,6.9414,1843.8,1843.7,11.56273137]
[1746342382303,7.24000195,1843.8,1843.7,11.56273137]
[1746342382514,6.9414,1843.8,1843.7,11.56273137]
[1746342383104,6.9414,1843.8,1843.7,4.32698]
[1746342383401,8.02595,1843.8,1843.7,3.51598]
[1746342384303,8.32449939,1843.8,1843.7,3.51598]
[1746342384504,8.32451198,1843.8,1843.7,3.51598]
[1746342384801,8.32451198,1843.8,1843.7,2.66288]
[1746342385304,8.32451198,1843.8,1843.7,1.5783]
[1746342386303,8.32443884,1843.8,1843.7,1.5783]
[1746342387006,8.32443884,1843.8,1843.7,2.66291]
[1746342387506,8.32443884,1843.8,1843.5,0.855]
[1746342387805,1.6277,1843.7,1843.6,1.08461]
[1746342388001,1.6277,1843.7,1843.6,2.75651]
[1746342388202,3.688,1843.7,1843.6,5.96437]
[1746342388508,3.688,1843.7,1843.6,6.77357]
[1746342389103,2.71209,1844.1,1843.9,1.08444]
[1746342389505,2.71209,1844.1,1844.0,1.08443]
[1746342389694,3.01051701,1844.1,1844.0,1.08443]
[1746342389894,1.92612701,1844.1,1844.0,1.08443]
[1746342390110,5.61412701,1844.1,1844.0,1.08443]
[1746342390702,6.69849701,1844.1,1844.0,1.08443]
[1746342391605,6.69852092,1844.1,1843.9,2.72815]
[1746342391801,0.29845092,1844.0,1843.9,2.72815]
[1746342392209,1.38290092,1844.0,1843.8,1.92769]
[1746342392508,2.76863252,1843.9,1843.8,1.92769]
[1746342393003,2.76863252,1843.9,1843.8,2.76779]
[1746342393203,6.45662641,1843.9,1843.8,2.76779]
[1746342393401,6.45662641,1843.9,1843.8,1.08449]
[1746342393603,7.24752641,1843.9,1843.8,1.08449]
[1746342394910,7.24761005,1843.9,1843.8,1.08449]
[1746342395310,1.08455,1843.8,1843.6,3.9988]
[1746342395510,0.8107,1843.7,1843.6,4.29247]
[1746342395904,2.5179,1843.7,1843.6,4.29247]
[1746342396106,5.56343,1843.9,1843.8,1.08455]
[1746342396414,2.17408992,1843.9,1843.8,1.08455]
[1746342396806,3.88128992,1843.9,1843.8,2.79045]
[1746342397013,2.79675992,1843.9,1843.8,2.79045]
[1746342397213,6.48475992,1843.9,1843.8,2.79045]
[1746342398011,3.98665992,1843.9,1843.8,2.79045]
[1746342398405,3.98667889,1843.9,1843.8,2.79045]
[1746342400310,3.98685826,1843.9,1843.8,2.79045]
[1746342401919,3.986896,1843.9,1843.8,2.79045]
[1746342405522,3.98696031,1843.9,1843.8,2.79045]
[1746342407223,3.986991,1843.9,1843.8,2.79045]
[1746342409024,3.98700234,1843.9,1843.8,2.79045]
[1746342410924,3.98700333,1843.9,1843.8,2.79045]
[1746342416021,7.34090333,1843.9,1843.8,2.79045]
[1746342417722,7.34104913,1843.9,1843.8,2.79045]
[1746342417930,3.98714913,1843.9,1843.8,2.79045]
[1746342419426,3.688,1843.9,1843.8,2.79045]
[1746342419629,3.98715516,1843.9,1843.8,2.79045]
[1746342420632,5.63535516,1843.9,1843.8,2.79045]
[1746342422434,5.63539806,1843.9,1843.8,2.79045]
[1746342424134,5.6353917,1843.9,1843.8,2.79045]
[1746342424844,5.6353917,1843.9,1843.8,1.08455]
[1746342425828,5.3362,1843.9,1843.8,1.08455]
[1746342426034,5.63541804,1843.9,1843.8,1.08455]
[1746342427734,5.63546989,1843.9,1843.8,1.08455]
[1746342428732,5.63545965,1843.9,1843.8,1.08455]
[1746342429536,5.63544974,1843.9,1843.8,1.08455]
[1746342432032,6.71993974,1843.9,1843.8,1.08455]
[1746342432238,5.63544974,1843.9,1843.8,1.08455]
[1746342432737,6.71993974,1843.9,1843.8,1.08455]
[1746342432939,6.71993974,1843.9,1843.7,1.08457]
[1746342432940,9.92773974,1843.9,1843.7,1.08457]
[1746342433131,2.65505864,1843.8,1843.7,1.08457]
[1746342434141,6.34305864,1843.8,1843.7,2.74747]
[1746342434739,6.34298557,1843.8,1843.7,2.74747]
[1746342435935,6.3429779,1843.8,1843.7,2.74747]
[1746342436144,6.34297997,1843.8,1843.7,2.74747]
[1746342436641,6.0438,1843.8,1843.7,2.74747]
[1746342436941,6.34298765,1843.8,1843.7,2.74747]
[1746342437641,4.77068765,1843.8,1843.7,2.74747]
[1746342437939,3.98718765,1843.8,1843.7,2.74747]
[1746342438435,3.688,1843.8,1843.7,2.74747]
[1746342438641,3.98718963,1843.8,1843.7,2.74747]
[1746342439142,0.29918963,1843.8,1843.7,2.74747]
[1746342440342,6.09773135,1843.9,1843.8,1.08455]
[1746342440541,6.39691632,1843.9,1843.8,2.74315]
[1746342440744,2.78468497,1843.9,1843.8,2.74315]
[1746342441241,6.47268497,1843.9,1843.8,2.74315]
[1746342442144,6.47268642,1843.9,1843.8,2.74315]
[1746342443043,3.98718642,1843.9,1843.8,2.74315]
[1746342444045,6.40228805,1843.9,1843.8,2.74315]
[1746342445645,6.40230079,1843.9,1843.8,2.74315]
[1746342447535,6.40230295,1843.9,1843.8,2.74315]
[1746342448136,6.40230295,1843.9,1843.8,1.08455]
[1746342449250,6.40230593,1843.9,1843.8,1.08455]
[1746342456454,6.40231365,1843.9,1843.8,1.08455]
[1746342465458,6.4023744,1843.9,1843.8,1.08455]
[1746342467058,6.4023744,1843.9,1843.8,2.75205]
[1746342467260,6.40237461,1843.9,1843.8,2.75205]
[1746342470862,6.40238652,1843.9,1843.8,2.75205]
[1746342472265,7.48687652,1843.9,1843.8,2.75205]
[1746342472460,7.48687652,1843.9,1843.8,1.08455]
[1746342472665,7.48690392,1843.9,1843.8,1.08455]
[1746342474367,7.48692072,1843.9,1843.8,1.08455]
[1746342476173,7.48692801,1843.9,1843.8,1.08455]
[1746342476765,7.48692801,1843.9,1843.7,1.6559]
[1746342477074,0.29933801,1843.8,1843.7,2.74051]
[1746342478170,3.98733801,1843.8,1843.7,2.74051]
[1746342481080,3.688,1843.8,1843.7,2.74051]
[1746342481281,3.9873158,1843.8,1843.7,2.74051]
[1746342484283,3.9873158,1843.8,1843.7,9.97626137]
[1746342485683,6.4299158,1843.8,1843.7,9.97626137]
[1746342486382,6.42992086,1843.8,1843.7,9.97626137]
[1746342487279,6.42992086,1843.8,1843.7,2.74051]
[1746342488184,6.42992012,1843.8,1843.7,2.74051]
[1746342488783,6.42991817,1843.8,1843.7,2.74051]
[1746342491985,6.42991462,1843.8,1843.7,2.74051]
[1746342493686,6.42990787,1843.8,1843.7,2.74051]
[1746342494083,6.42990787,1843.8,1843.7,1.08461]
[1746342494382,6.42990787,1843.8,1843.7,2.80291]
[1746342495490,6.42990332,1843.8,1843.7,2.80291]
[1746342498791,6.42990841,1843.8,1843.7,2.80291]
[1746342499193,6.42990853,1843.8,1843.7,2.80291]
[1746342500891,6.42991242,1843.8,1843.7,2.80291]
[1746342501797,7.23751242,1843.8,1843.7,2.80291]
[1746342504496,7.23751551,1843.8,1843.7,2.80291]
[1746342505094,7.23751551,1843.8,1843.7,1.08461]
[1746342506088,7.23751551,1843.8,1843.7,2.75751]
[1746342506289,7.23750216,1843.8,1843.7,2.75751]
[1746342508196,7.23749255,1843.8,1843.7,2.75751]
[1746342509098,7.23749255,1843.8,1843.7,1.08461]
[1746342510001,7.23749918,1843.8,1843.7,2.74251]
[1746342513306,7.23749918,1843.8,1843.7,1.08461]
[1746342513508,7.23752026,1843.8,1843.7,1.08461]
[1746342513806,7.23752026,1843.8,1843.7,2.64691]
[1746342515306,7.23752497,1843.8,1843.7,2.64691]
[1746342515910,7.23752497,1843.8,1843.7,3.43951]
[1746342517208,7.23751758,1843.8,1843.7,3.43951]
[1746342518109,7.23751758,1843.8,1843.7,10.67526137]
[1746342519011,7.23751102,1843.8,1843.7,10.67526137]
[1746342520710,7.23749739,1843.8,1843.7,10.67526137]
[1746342521112,3.98729739,1843.8,1843.7,10.67526137]
[1746342521315,3.98728948,1843.8,1843.7,10.67526137]
[1746342521813,5.70758948,1843.8,1843.7,10.67526137]
[1746342522515,5.70759357,1843.8,1843.7,10.67526137]
[1746342524316,5.70759447,1843.8,1843.7,10.67526137]
[1746342524615,6.79214447,1843.8,1843.7,8.79805137]
[1746342524816,6.56999447,1843.8,1843.7,8.32036137]
[1746342525916,6.56999447,1843.8,1843.7,9.98906137]
[1746342527819,6.56997957,1843.8,1843.7,9.98906137]
[1746342529613,6.2707,1843.8,1843.7,9.98906137]
[1746342529919,6.56997882,1843.8,1843.7,9.98906137]
[1746342536528,6.56999364,1843.8,1843.7,9.98906137]
[1746342536931,6.5699941,1843.8,1843.7,9.98906137]
[1746342538230,6.56999433,1843.8,1843.7,9.98906137]
[1746342538631,6.56999502,1843.8,1843.7,9.98906137]
[1746342539330,3.98729502,1843.8,1843.7,9.98906137]
[1746342539530,3.98729502,1843.8,1843.7,10.82916137]
[1746342541134,5.60789502,1843.8,1843.7,10.82916137]
[1746342541322,6.39229502,1843.8,1843.7,9.98906137]
[1746342541723,6.39230615,1843.8,1843.7,8.32036137]
[1746342543536,6.3923133,1843.8,1843.7,8.32036137]
[1746342544436,7.4768633,1843.8,1843.7,8.32036137]
[1746342544731,7.4768633,1843.8,1843.7,7.23575137]
[1746342544937,7.47690604,1843.8,1843.7,7.23575137]
[1746342545233,7.47691739,1843.8,1843.7,7.23575137]
[1746342545828,7.47691739,1843.8,1843.7,8.32036137]
[1746342547536,7.47691739,1843.8,1843.7,7.23575137]
[1746342548933,7.47668794,1843.8,1843.7,7.23575137]
[1746342551235,7.47668794,1843.8,1843.7,8.32036137]
[1746342551935,7.47668794,1843.8,1843.7,7.23575137]
[1746342552537,7.47660134,1843.8,1843.7,7.23575137]
[1746342554335,7.47658015,1843.8,1843.7,7.23575137]
[1746342554529,7.47658015,1843.8,1843.6,1.08463]
[1746342554730,2.66823015,1843.7,1843.6,1.08463]
[1746342556235,6.35623015,1843.7,1843.6,1.08463]
[1746342557736,7.44084015,1843.7,1843.6,1.08463]
[1746342558036,7.44081981,1843.7,1843.6,1.08463]
[1746342558938,6.35620981,1843.7,1843.6,1.08463]
[1746342559438,6.35620981,1843.7,1843.6,2.75653]
[1746342560033,6.35620589,1843.7,1843.6,2.75653]
[1746342560237,3.688,1843.7,1843.6,2.75653]
[1746342561141,6.82003135,1843.9,1843.8,1.08455]
[1746342561326,7.11901706,1843.9,1843.8,1.08455]
[1746342562140,10.80701706,1843.9,1843.8,1.08455]
[1746342562341,10.80701706,1843.9,1843.8,2.71475]
[1746342563238,7.19478571,1843.9,1843.8,2.71475]
[1746342563435,6.8958,1843.9,1843.8,2.71475]
[1746342563645,7.19478639,1843.9,1843.8,2.71475]
[1746342564644,3.98698639,1843.9,1843.8,2.71475]
[1746342566332,5.59498639,1843.9,1843.8,2.71475]
[1746342567038,5.59499767,1843.9,1843.8,2.71475]
[1746342567243,3.98699767,1843.9,1843.8,3.54515]
[1746342568942,3.98697921,1843.9,1843.8,3.54515]
[1746342570131,5.71747921,1843.9,1843.8,3.54515]
[1746342570840,5.71746938,1843.9,1843.8,3.54515]
[1746342571243,5.71746601,1843.9,1843.8,3.54515]